[Event "Early-Titled-Tuesday-Blitz-February-13-2024"]
[Site "Chess.com"]
[Date "2024.02.13"]
[Round "8"]
[White "Caroexpert"]
[Black "ProfessorChess101"]
[Result "0-1"]
[WhiteElo "2545"]
[BlackElo "2793"]
[TimeControl "180+1"]
[EndTime "9:33:10 PST"]
[Termination "ProfessorChess101 won by resignation"]

1. d4 {[%clk 0:03:00.9]} 1... Nf6 {[%clk 0:02:58.7]} 2. c4 {[%clk 0:03:01.2]}
2... e6 {[%clk 0:02:58.9]} 3. Nc3 {[%clk 0:02:59.9]} 3... d5 {[%clk 0:02:57.7]}
4. cxd5 {[%clk 0:02:56.1]} 4... exd5 {[%clk 0:02:58.6]} 5. Bf4 {[%clk
0:02:55.9]} 5... Bd6 {[%clk 0:02:57.1]} 6. Bxd6 {[%clk 0:02:54.8]} 6... Qxd6
{[%clk 0:02:58]} 7. e3 {[%clk 0:02:55.2]} 7... O-O {[%clk 0:02:56.3]} 8. Nge2
{[%clk 0:02:55.8]} 8... a6 {[%clk 0:02:50.3]} 9. Ng3 {[%clk 0:02:53.9]} 9... b5
{[%clk 0:02:49.5]} 10. Rc1 {[%clk 0:02:52.9]} 10... Be6 {[%clk 0:02:45]} 11. Bd3
{[%clk 0:02:51.8]} 11... Nbd7 {[%clk 0:02:45]} 12. O-O {[%clk 0:02:51.3]} 12...
c5 {[%clk 0:02:44.5]} 13. dxc5 {[%clk 0:02:51.2]} 13... Nxc5 {[%clk 0:02:45.4]}
14. Bb1 {[%clk 0:02:51.6]} 14... Rfd8 {[%clk 0:02:43.7]} 15. Nce2 {[%clk
0:02:50.5]} 15... Nce4 {[%clk 0:02:40.5]} 16. Qd4 {[%clk 0:02:36.3]} 16... Qe7
{[%clk 0:02:16.9]} 17. Nf4 {[%clk 0:02:11.2]} 17... Rac8 {[%clk 0:02:16.4]} 18.
Rxc8 {[%clk 0:01:59.4]} 18... Bxc8 {[%clk 0:02:13.5]} 19. Rc1 {[%clk 0:01:49.5]}
19... Bb7 {[%clk 0:01:51.4]} 20. Nf5 {[%clk 0:01:43.1]} 20... Qd7 {[%clk
0:01:48.3]} 21. Bxe4 {[%clk 0:01:25.2]} 21... dxe4 {[%clk 0:01:34.6]} 22. Qxd7
{[%clk 0:01:13.1]} 22... Rxd7 {[%clk 0:01:35.5]} 23. Nd4 {[%clk 0:01:10.6]}
23... Kf8 {[%clk 0:01:31.4]} 24. Kf1 {[%clk 0:01:07.5]} 24... g6 {[%clk
0:01:30.1]} 25. Ke2 {[%clk 0:01:04.5]} 25... Ke7 {[%clk 0:01:26.8]} 26. h4
{[%clk 0:00:50.5]} 26... h6 {[%clk 0:01:22.8]} 27. Rc5 {[%clk 0:00:45.1]} 27...
Kd6 {[%clk 0:01:19.5]} 28. Rc2 {[%clk 0:00:45.1]} 28... Rc7 {[%clk 0:01:05]} 29.
Rd2 {[%clk 0:00:41.8]} 29... Ke5 {[%clk 0:01:00.6]} 30. f3 {[%clk 0:00:30.8]}
30... Nd5 {[%clk 0:00:46.5]} 31. Nxd5 {[%clk 0:00:29.8]} 31... Bxd5 {[%clk
0:00:47.4]} 32. f4+ {[%clk 0:00:28.5]} 32... Kf6 {[%clk 0:00:42.9]} 33. b3
{[%clk 0:00:27.8]} 33... Rc1 {[%clk 0:00:38]} 34. Kf2 {[%clk 0:00:09.4]} 34...
Rh1 {[%clk 0:00:31.4]} 35. Nxb5 {[%clk 0:00:09.2]} 35... Be6 {[%clk 0:00:23.1]}
36. Nd6 {[%clk 0:00:08.8]} 36... Ke7 {[%clk 0:00:18.3]} 37. Nxe4 {[%clk
0:00:08.9]} 37... Rxh4 {[%clk 0:00:18.9]} 38. Ng3 {[%clk 0:00:09.1]} 38... h5
{[%clk 0:00:16]} 39. Rd4 {[%clk 0:00:07.9]} 39... Rg4 {[%clk 0:00:14.1]} 40. Ra4
{[%clk 0:00:05]} 40... h4 {[%clk 0:00:13]} 41. Ne2 {[%clk 0:00:05.3]} 41... Kf8
{[%clk 0:00:08.5]} 42. Rxa6 {[%clk 0:00:04.4]} 42... Bd5 {[%clk 0:00:08.7]} 43.
Rd6 {[%clk 0:00:01.8]} 43... Bxg2 {[%clk 0:00:08.3]} 44. Nd4 {[%clk 0:00:01.5]}
44... Be4 {[%clk 0:00:07.6]} 45. Rc6 {[%clk 0:00:01.5]} 45... Bxc6 {[%clk
0:00:07.2]} 46. Nxc6 {[%clk 0:00:02.4]} 46... h3 {[%clk 0:00:07.7]} 47. Ne5
{[%clk 0:00:01.4]} 47... h2 {[%clk 0:00:06.2]} 48. Nxg4 {[%clk 0:00:02.3]} 48...
h1=Q {[%clk 0:00:07.1]} 49. Ne5 {[%clk 0:00:02.7]} 49... Qb1 {[%clk 0:00:06.7]}
50. Kf3 {[%clk 0:00:03.6]} 50... Qxa2 {[%clk 0:00:07]} 51. Ng4 {[%clk
0:00:03.5]} 51... Qxb3 {[%clk 0:00:07]} 52. Ne5 {[%clk 0:00:03.3]} 52... Ke7
{[%clk 0:00:06.4]} 53. Ng4 {[%clk 0:00:04.2]} 53... Ke6 {[%clk 0:00:06]} 0-1

[Event "Early-Titled-Tuesday-Blitz-February-13-2024"]
[Site "Chess.com"]
[Date "2024.02.13"]
[Round "8"]
[White "bazar-wokzal"]
[Black "viviania"]
[Result "0-1"]
[WhiteElo "2669"]
[BlackElo "2901"]
[TimeControl "180+1"]
[EndTime "9:33:11 PST"]
[Termination "viviania won by resignation"]

1. e4 {[%clk 0:03:00.9]} 1... c5 {[%clk 0:02:58.5]} 2. c3 {[%clk 0:02:58.4]}
2... e6 {[%clk 0:02:56]} 3. d4 {[%clk 0:02:58.2]} 3... d5 {[%clk 0:02:56.3]} 4.
exd5 {[%clk 0:02:55.5]} 4... exd5 {[%clk 0:02:56.4]} 5. Nf3 {[%clk 0:02:55.7]}
5... Nf6 {[%clk 0:02:55.6]} 6. Be3 {[%clk 0:02:55.1]} 6... c4 {[%clk 0:02:52.8]}
7. b3 {[%clk 0:02:54.9]} 7... cxb3 {[%clk 0:02:52.7]} 8. axb3 {[%clk 0:02:54.8]}
8... Bd6 {[%clk 0:02:52.9]} 9. Bd3 {[%clk 0:02:51.4]} 9... O-O {[%clk
0:02:52.1]} 10. O-O {[%clk 0:02:51.4]} 10... Bg4 {[%clk 0:02:45.6]} 11. Nbd2
{[%clk 0:02:48.3]} 11... Nc6 {[%clk 0:02:42.4]} 12. h3 {[%clk 0:02:47.8]} 12...
Bh5 {[%clk 0:02:42.3]} 13. Re1 {[%clk 0:02:45.4]} 13... Re8 {[%clk 0:02:31]} 14.
Bg5 {[%clk 0:02:41.5]} 14... Rxe1+ {[%clk 0:02:30.3]} 15. Qxe1 {[%clk
0:02:41.3]} 15... h6 {[%clk 0:02:30.7]} 16. Bh4 {[%clk 0:02:34.1]} 16... g5
{[%clk 0:02:27.5]} 17. Bg3 {[%clk 0:02:29.6]} 17... Bxg3 {[%clk 0:02:27.2]} 18.
fxg3 {[%clk 0:02:29.6]} 18... Qd6 {[%clk 0:02:28]} 19. g4 {[%clk 0:02:20.9]}
19... Re8 {[%clk 0:02:23.4]} 20. Qf2 {[%clk 0:02:13.5]} 20... Bg6 {[%clk
0:02:20.7]} 21. Bxg6 {[%clk 0:02:13]} 21... fxg6 {[%clk 0:02:20.6]} 22. Rf1
{[%clk 0:01:58.2]} 22... Kg7 {[%clk 0:02:19.9]} 23. Re1 {[%clk 0:01:40.5]} 23...
Re7 {[%clk 0:02:19.4]} 24. Ne5 {[%clk 0:01:31.2]} 24... Nxe5 {[%clk 0:02:13.6]}
25. dxe5 {[%clk 0:01:31.5]} 25... Rxe5 {[%clk 0:02:13.7]} 26. Rxe5 {[%clk
0:01:31.6]} 26... Qxe5 {[%clk 0:02:13.7]} 27. Qxa7 {[%clk 0:01:31.5]} 27... Qe1+
{[%clk 0:01:50.5]} 28. Nf1 {[%clk 0:01:28.4]} 28... Qxc3 {[%clk 0:01:50.5]} 29.
Qxb7+ {[%clk 0:01:27.5]} 29... Kf8 {[%clk 0:01:50.7]} 30. Qb8+ {[%clk
0:01:23.7]} 30... Kf7 {[%clk 0:01:48.2]} 31. Qb7+ {[%clk 0:01:23.1]} 31... Ke6
{[%clk 0:01:43.1]} 32. Qb6+ {[%clk 0:01:21.3]} 32... Ke5 {[%clk 0:01:35.5]} 33.
Qb8+ {[%clk 0:01:13.5]} 33... Ke4 {[%clk 0:01:32.3]} 34. Kh2 {[%clk 0:01:12.6]}
34... Kd3 {[%clk 0:00:59.3]} 35. Ng3 {[%clk 0:01:05.4]} 35... Qd4 {[%clk
0:00:36.2]} 36. b4 {[%clk 0:00:58.2]} 36... Qf4 {[%clk 0:00:29.7]} 37. Qb5+
{[%clk 0:00:55.7]} 37... Kc2 {[%clk 0:00:22.9]} 38. Qe2+ {[%clk 0:00:50]} 38...
Kc3 {[%clk 0:00:17.5]} 39. b5 {[%clk 0:00:49.7]} 39... Ne4 {[%clk 0:00:17.6]}
40. Qf3+ {[%clk 0:00:47.3]} 40... Qxf3 {[%clk 0:00:14.6]} 41. gxf3 {[%clk
0:00:47.7]} 41... Nd6 {[%clk 0:00:14.4]} 42. b6 {[%clk 0:00:47.3]} 42... Kc4
{[%clk 0:00:14.5]} 43. Ne2 {[%clk 0:00:43.7]} 43... d4 {[%clk 0:00:07.3]} 44.
Ng3 {[%clk 0:00:36.1]} 44... Kb5 {[%clk 0:00:03.2]} 45. Ne4 {[%clk 0:00:36]}
45... Nb7 {[%clk 0:00:03.1]} 46. Kg3 {[%clk 0:00:35.5]} 46... Kxb6 {[%clk
0:00:03.3]} 47. f4 {[%clk 0:00:34.9]} 47... Nc5 {[%clk 0:00:03.3]} 48. Nd2
{[%clk 0:00:27.7]} 48... Kc6 {[%clk 0:00:03.3]} 49. fxg5 {[%clk 0:00:26.9]}
49... hxg5 {[%clk 0:00:03.1]} 50. h4 {[%clk 0:00:27.4]} 50... gxh4+ {[%clk
0:00:02.3]} 51. Kxh4 {[%clk 0:00:27.9]} 51... Kd5 {[%clk 0:00:02.5]} 52. Nf3
{[%clk 0:00:15.9]} 52... Ne4 {[%clk 0:00:01.4]} 53. g5 {[%clk 0:00:07.1]} 53...
d3 {[%clk 0:00:01.4]} 54. Kg4 {[%clk 0:00:05.2]} 54... d2 {[%clk 0:00:01.6]} 55.
Nxd2 {[%clk 0:00:04.8]} 55... Nxd2 {[%clk 0:00:01.8]} 56. Kf4 {[%clk 0:00:05.7]}
56... Nc4 {[%clk 0:00:01.9]} 0-1

[Event "Early-Titled-Tuesday-Blitz-February-13-2024"]
[Site "Chess.com"]
[Date "2024.02.13"]
[Round "8"]
[White "banhgiahuy2606"]
[Black "DeArron_Fox"]
[Result "1-0"]
[WhiteElo "2686"]
[BlackElo "2512"]
[TimeControl "180+1"]
[EndTime "9:33:12 PST"]
[Termination "banhgiahuy2606 won on time"]

1. e4 {[%clk 0:03:00.9]} 1... c5 {[%clk 0:02:24.5]} 2. Nf3 {[%clk 0:02:54.8]}
2... e6 {[%clk 0:02:24.4]} 3. b3 {[%clk 0:02:54.4]} 3... d6 {[%clk 0:02:22.3]}
4. Bb2 {[%clk 0:02:54]} 4... Nf6 {[%clk 0:02:22.7]} 5. e5 {[%clk 0:02:52.2]}
5... dxe5 {[%clk 0:02:21.4]} 6. Nxe5 {[%clk 0:02:53.1]} 6... Bd7 {[%clk
0:02:19]} 7. Nxd7 {[%clk 0:02:50.6]} 7... Qxd7 {[%clk 0:02:17]} 8. Nc3 {[%clk
0:02:51.2]} 8... Nc6 {[%clk 0:02:14.5]} 9. Bb5 {[%clk 0:02:48.7]} 9... Be7
{[%clk 0:02:10.4]} 10. Qe2 {[%clk 0:02:47.4]} 10... a6 {[%clk 0:02:07.8]} 11.
Bxc6 {[%clk 0:02:47]} 11... Qxc6 {[%clk 0:02:08.7]} 12. O-O-O {[%clk 0:02:47.1]}
12... O-O {[%clk 0:02:00.6]} 13. g4 {[%clk 0:02:36.9]} 13... b5 {[%clk 0:01:39]}
14. g5 {[%clk 0:02:32.8]} 14... Nd7 {[%clk 0:00:30.5]} 15. h4 {[%clk 0:02:29]}
15... c4 {[%clk 0:00:29.8]} 16. Kb1 {[%clk 0:02:10.3]} 16... Rfc8 {[%clk
0:00:27]} 17. Rc1 {[%clk 0:02:05.8]} 17... a5 {[%clk 0:00:16.2]} 18. h5 {[%clk
0:01:51.3]} 18... Bxg5 {[%clk 0:00:09.2]} 19. h6 {[%clk 0:01:49.7]} 19... g6
{[%clk 0:00:06.4]} 20. Ne4 {[%clk 0:01:48.6]} 20... Be7 {[%clk 0:00:05.8]} 21.
Qe3 {[%clk 0:01:36.9]} 21... a4 {[%clk 0:00:03.2]} 22. f4 {[%clk 0:01:29.9]}
22... axb3 {[%clk 0:00:02.7]} 23. cxb3 {[%clk 0:01:22.2]} 23... Qa6 {[%clk
0:00:03.2]} 24. a4 {[%clk 0:01:21]} 24... bxa4 {[%clk 0:00:02.7]} 25. Qd4 {[%clk
0:01:20.8]} 25... e5 {[%clk 0:00:02.2]} 26. Qxd7 {[%clk 0:01:11.8]} 26... axb3
{[%clk 0:00:02.5]} 27. Rcf1 {[%clk 0:00:57.6]} 27... Qa2+ {[%clk 0:00:02.1]} 28.
Kc1 {[%clk 0:00:58.1]} 28... Ba3 {[%clk 0:00:02.7]} 29. Nf6+ {[%clk 0:00:57.9]}
29... Kh8 {[%clk 0:00:03.4]} 30. Kd1 {[%clk 0:00:54.3]} 30... Qb1+ {[%clk
0:00:03.9]} 31. Ke2 {[%clk 0:00:53.6]} 31... Qd3+ {[%clk 0:00:04.4]} 32. Qxd3
{[%clk 0:00:52.2]} 32... cxd3+ {[%clk 0:00:05.3]} 33. Kxd3 {[%clk 0:00:52.8]}
33... Bxb2 {[%clk 0:00:06.2]} 34. Rb1 {[%clk 0:00:46.9]} 34... Bd4 {[%clk
0:00:03.3]} 35. Rxb3 {[%clk 0:00:43.8]} 35... Rd8 {[%clk 0:00:03.9]} 36. Ne4
{[%clk 0:00:23.8]} 36... exf4 {[%clk 0:00:03.8]} 37. Ke2 {[%clk 0:00:24]} 37...
f5 {[%clk 0:00:03.4]} 38. Ng5 {[%clk 0:00:23.5]} 38... Ra7 {[%clk 0:00:03.3]}
39. Rhb1 {[%clk 0:00:22]} 39... Re7+ {[%clk 0:00:02.8]} 40. Kf3 {[%clk
0:00:21.7]} 40... Bf6 {[%clk 0:00:03.7]} 41. Rb8 {[%clk 0:00:18.8]} 41... Rde8
{[%clk 0:00:01.5]} 42. Nf7+ {[%clk 0:00:14.2]} 42... Kg8 {[%clk 0:00:01.7]} 43.
Nd6 {[%clk 0:00:14.5]} 43... Kf8 {[%clk 0:00:01.1]} 44. Rxe8+ {[%clk 0:00:13.6]}
44... Rxe8 {[%clk 0:00:02]} 45. Nxe8 {[%clk 0:00:13.7]} 45... Kxe8 {[%clk
0:00:02.9]} 46. Rb7 {[%clk 0:00:13.7]} 46... Be7 {[%clk 0:00:02.2]} 47. Kxf4
{[%clk 0:00:13.1]} 47... Kf7 {[%clk 0:00:02.9]} 48. Ke5 {[%clk 0:00:13]} 48...
Kf8 {[%clk 0:00:02.4]} 49. Ke6 {[%clk 0:00:13.4]} 49... Bg5 {[%clk 0:00:02.2]}
50. Rxh7 {[%clk 0:00:12.9]} 50... Kg8 {[%clk 0:00:02.8]} 51. Rg7+ {[%clk
0:00:13.2]} 51... Kh8 {[%clk 0:00:03.4]} 52. Rxg6 {[%clk 0:00:11.4]} 52... Bxd2
{[%clk 0:00:03.4]} 53. Kxf5 {[%clk 0:00:08.9]} 53... Kh7 {[%clk 0:00:02.9]} 54.
Rd6 {[%clk 0:00:08.4]} 54... Bxh6 {[%clk 0:00:02.3]} 55. Rd7+ {[%clk 0:00:08.8]}
55... Bg7 {[%clk 0:00:02]} 56. Kg5 {[%clk 0:00:08]} 1-0

[Event "Early-Titled-Tuesday-Blitz-February-13-2024"]
[Site "Chess.com"]
[Date "2024.02.13"]
[Round "8"]
[White "Zampronha1971"]
[Black "Der_Balak_3Halak"]
[Result "0-1"]
[WhiteElo "2309"]
[BlackElo "2448"]
[TimeControl "180+1"]
[EndTime "9:33:13 PST"]
[Termination "Der_Balak_3Halak won on time"]

1. e4 {[%clk 0:03:00.9]} 1... g6 {[%clk 0:03:00.9]} 2. d4 {[%clk 0:03:00.2]}
2... Bg7 {[%clk 0:03:01.1]} 3. Nc3 {[%clk 0:03:00.9]} 3... c5 {[%clk 0:03:01.5]}
4. Nf3 {[%clk 0:02:59.8]} 4... cxd4 {[%clk 0:03:01.3]} 5. Nxd4 {[%clk
0:02:59.9]} 5... Nc6 {[%clk 0:03:02.2]} 6. Be3 {[%clk 0:02:59]} 6... Nf6 {[%clk
0:02:58.5]} 7. Bc4 {[%clk 0:02:59.2]} 7... O-O {[%clk 0:02:57]} 8. Bb3 {[%clk
0:02:59.8]} 8... a6 {[%clk 0:02:54.6]} 9. f3 {[%clk 0:02:56.1]} 9... b5 {[%clk
0:02:54.2]} 10. O-O {[%clk 0:02:44.3]} 10... Bb7 {[%clk 0:02:48.6]} 11. a4
{[%clk 0:02:42.1]} 11... b4 {[%clk 0:02:44.9]} 12. Nd5 {[%clk 0:02:42.4]} 12...
Nxd4 {[%clk 0:02:41]} 13. Bxd4 {[%clk 0:02:41.7]} 13... Nxd5 {[%clk 0:02:24.9]}
14. Bxd5 {[%clk 0:02:15.3]} 14... Bxd4+ {[%clk 0:02:17.2]} 15. Qxd4 {[%clk
0:02:13.6]} 15... Rb8 {[%clk 0:02:13.3]} 16. Rfd1 {[%clk 0:02:00.6]} 16... Bxd5
{[%clk 0:02:11.2]} 17. Qxd5 {[%clk 0:02:00.4]} 17... Qb6+ {[%clk 0:02:08.5]} 18.
Kh1 {[%clk 0:01:59.6]} 18... d6 {[%clk 0:02:07.5]} 19. a5 {[%clk 0:01:55.8]}
19... Qb5 {[%clk 0:02:05.1]} 20. Qd4 {[%clk 0:01:46.7]} 20... Rfc8 {[%clk
0:02:01.9]} 21. Rd2 {[%clk 0:01:47.3]} 21... Rc4 {[%clk 0:02:00.2]} 22. Qa7
{[%clk 0:01:42.8]} 22... Rb7 {[%clk 0:01:54.4]} 23. Qa8+ {[%clk 0:01:42.4]}
23... Rb8 {[%clk 0:01:55]} 24. Qa7 {[%clk 0:01:42.5]} 24... Rb7 {[%clk
0:01:53.9]} 25. Qa8+ {[%clk 0:01:42.7]} 25... Kg7 {[%clk 0:01:54.7]} 26. Rd5
{[%clk 0:01:33.8]} 26... Qc6 {[%clk 0:01:37.8]} 27. Rd2 {[%clk 0:01:33.7]} 27...
Rc7 {[%clk 0:01:31.6]} 28. Qb8 {[%clk 0:01:04]} 28... Rxc2 {[%clk 0:01:10.6]}
29. Rxc2 {[%clk 0:00:58.9]} 29... Qxc2 {[%clk 0:01:11.5]} 30. Rf1 {[%clk
0:00:37.5]} 30... b3 {[%clk 0:00:58.2]} 31. Qb6 {[%clk 0:00:37.8]} 31... Rc6
{[%clk 0:00:50.7]} 32. Qb7 {[%clk 0:00:37.3]} 32... e5 {[%clk 0:00:45.4]} 33. h3
{[%clk 0:00:35.2]} 33... h5 {[%clk 0:00:27.2]} 34. Kh2 {[%clk 0:00:35.2]} 34...
h4 {[%clk 0:00:27.4]} 35. f4 {[%clk 0:00:26.3]} 35... Qc4 {[%clk 0:00:16.1]} 36.
Rf3 {[%clk 0:00:18.9]} 36... exf4 {[%clk 0:00:14.9]} 37. Rxf4 {[%clk 0:00:18.2]}
37... Rc7 {[%clk 0:00:14.7]} 38. Qb6 {[%clk 0:00:17.5]} 38... Qc5 {[%clk
0:00:13.8]} 39. Qxa6 {[%clk 0:00:14]} 39... Ra7 {[%clk 0:00:13.8]} 40. Qd3
{[%clk 0:00:08.7]} 40... Qe5 {[%clk 0:00:13.9]} 41. g3 {[%clk 0:00:06]} 41...
hxg3+ {[%clk 0:00:13.8]} 42. Qxg3 {[%clk 0:00:06.8]} 42... Rxa5 {[%clk
0:00:13.1]} 43. Rf3 {[%clk 0:00:02]} 43... Qxg3+ {[%clk 0:00:13]} 44. Kxg3
{[%clk 0:00:02.9]} 44... Rb5 {[%clk 0:00:12.6]} 45. Rd3 {[%clk 0:00:03.3]} 45...
Kf6 {[%clk 0:00:11.7]} 46. Rxd6+ {[%clk 0:00:03.7]} 46... Ke5 {[%clk 0:00:12.4]}
47. Rd7 {[%clk 0:00:04.1]} 47... f6 {[%clk 0:00:13]} 48. Rg7 {[%clk 0:00:04.2]}
48... g5 {[%clk 0:00:13.3]} 49. Kg4 {[%clk 0:00:04.7]} 49... Kxe4 {[%clk
0:00:12.5]} 50. Rf7 {[%clk 0:00:05.1]} 50... f5+ {[%clk 0:00:10.1]} 51. Kxg5
{[%clk 0:00:05]} 51... f4+ {[%clk 0:00:10.6]} 52. Kg4 {[%clk 0:00:04.5]} 52...
Kd3 {[%clk 0:00:05.8]} 53. Kxf4 {[%clk 0:00:03.6]} 53... Rb4+ {[%clk 0:00:04.5]}
54. Kg3 {[%clk 0:00:03]} 54... Kc2 {[%clk 0:00:05.4]} 55. h4 {[%clk 0:00:03.5]}
55... Kxb2 {[%clk 0:00:05.7]} 56. h5 {[%clk 0:00:04]} 56... Rb5 {[%clk
0:00:06.1]} 57. Rf1 {[%clk 0:00:01.5]} 57... Rxh5 {[%clk 0:00:04.8]} 0-1

[Event "Early-Titled-Tuesday-Blitz-February-13-2024"]
[Site "Chess.com"]
[Date "2024.02.13"]
[Round "8"]
[White "TigrVShlyape"]
[Black "TimGrutter03"]
[Result "1-0"]
[WhiteElo "2863"]
[BlackElo "2643"]
[TimeControl "180+1"]
[EndTime "9:33:21 PST"]
[Termination "TigrVShlyape won on time"]

1. e4 {[%clk 0:02:05.2]} 1... c5 {[%clk 0:02:57]} 2. Nf3 {[%clk 0:02:04.8]} 2...
e6 {[%clk 0:02:54.6]} 3. d4 {[%clk 0:02:04.7]} 3... cxd4 {[%clk 0:02:55.5]} 4.
Nxd4 {[%clk 0:02:04.5]} 4... Nc6 {[%clk 0:02:56.2]} 5. Nc3 {[%clk 0:02:04.1]}
5... Qc7 {[%clk 0:02:55.8]} 6. Be3 {[%clk 0:02:01]} 6... a6 {[%clk 0:02:55.2]}
7. Qf3 {[%clk 0:02:01.2]} 7... b5 {[%clk 0:02:52.2]} 8. Qg3 {[%clk 0:02:00.8]}
8... Qxg3 {[%clk 0:02:49.8]} 9. hxg3 {[%clk 0:02:01.1]} 9... Nxd4 {[%clk
0:02:50.4]} 10. Bxd4 {[%clk 0:02:01]} 10... Ne7 {[%clk 0:02:47.9]} 11. g4 {[%clk
0:01:44.3]} 11... Nc6 {[%clk 0:02:47]} 12. Be3 {[%clk 0:01:43.1]} 12... Bb4
{[%clk 0:02:46.3]} 13. Bd2 {[%clk 0:01:40.5]} 13... f6 {[%clk 0:02:42.5]} 14. a3
{[%clk 0:01:35.9]} 14... Ba5 {[%clk 0:02:35.1]} 15. a4 {[%clk 0:01:20.9]} 15...
b4 {[%clk 0:02:18.3]} 16. Nd1 {[%clk 0:01:16.5]} 16... Bb7 {[%clk 0:02:00.2]}
17. Ne3 {[%clk 0:01:14.1]} 17... Rc8 {[%clk 0:01:52.2]} 18. f3 {[%clk
0:01:05.3]} 18... Nd4 {[%clk 0:01:39.3]} 19. Bd3 {[%clk 0:01:03.8]} 19... Bb6
{[%clk 0:01:27.1]} 20. a5 {[%clk 0:00:55.9]} 20... Bc5 {[%clk 0:01:23.7]} 21. b3
{[%clk 0:00:54.3]} 21... Bd6 {[%clk 0:01:06.5]} 22. Nc4 {[%clk 0:00:46.4]} 22...
Bg3+ {[%clk 0:01:05.9]} 23. Kd1 {[%clk 0:00:40.9]} 23... d5 {[%clk 0:00:48.8]}
24. exd5 {[%clk 0:00:40.5]} 24... Bxd5 {[%clk 0:00:45.1]} 25. Nb6 {[%clk
0:00:40]} 25... Rd8 {[%clk 0:00:32.9]} 26. Bxa6 {[%clk 0:00:20.3]} 26... Nxf3
{[%clk 0:00:23.3]} 27. Nxd5 {[%clk 0:00:17.2]} 27... Nxd2 {[%clk 0:00:19.4]} 28.
Kxd2 {[%clk 0:00:16.5]} 28... Rxd5+ {[%clk 0:00:19.3]} 29. Ke2 {[%clk
0:00:12.2]} 29... Bc7 {[%clk 0:00:17.2]} 30. Bc4 {[%clk 0:00:10.9]} 30... Rxa5
{[%clk 0:00:14.5]} 31. Rxa5 {[%clk 0:00:10.5]} 31... Bxa5 {[%clk 0:00:15.4]} 32.
Ra1 {[%clk 0:00:10.4]} 32... Bd8 {[%clk 0:00:11.9]} 33. Ra7 {[%clk 0:00:09.2]}
33... O-O {[%clk 0:00:07.7]} 34. Bxe6+ {[%clk 0:00:09.3]} 34... Kh8 {[%clk
0:00:08.3]} 35. Kf3 {[%clk 0:00:09.6]} 35... Re8 {[%clk 0:00:04.5]} 36. Bf7
{[%clk 0:00:09.5]} 36... Re7 {[%clk 0:00:02.9]} 37. Ra8 {[%clk 0:00:09.2]} 37...
Rd7 {[%clk 0:00:03.5]} 38. Be6 {[%clk 0:00:09.4]} 38... Rd6 {[%clk 0:00:03.4]}
39. Rb8 {[%clk 0:00:09.5]} 39... g6 {[%clk 0:00:02.7]} 40. Bc4 {[%clk
0:00:09.3]} 40... Kg7 {[%clk 0:00:01.6]} 41. Rxb4 {[%clk 0:00:09.4]} 41... Rd2
{[%clk 0:00:02.2]} 42. Rb7+ {[%clk 0:00:08.9]} 42... Kh6 {[%clk 0:00:02.5]} 43.
Bd3 {[%clk 0:00:08.7]} 43... Kg5 {[%clk 0:00:01.6]} 44. Rb5+ {[%clk 0:00:08]}
44... Kh6 {[%clk 0:00:01.6]} 45. g3 {[%clk 0:00:08.3]} 45... Be7 {[%clk
0:00:01.2]} 46. Rb7 {[%clk 0:00:08.3]} 46... Bc5 {[%clk 0:00:01.5]} 47. b4
{[%clk 0:00:08.7]} 47... Rf2+ {[%clk 0:00:01.2]} 48. Ke4 {[%clk 0:00:08.6]}
48... Bd6 {[%clk 0:00:01.1]} 49. c4 {[%clk 0:00:08.7]} 49... Bxg3 {[%clk
0:00:01.8]} 50. c5 {[%clk 0:00:08.8]} 50... Rf4+ {[%clk 0:00:02.4]} 51. Kd5
{[%clk 0:00:08.8]} 51... Rxg4 {[%clk 0:00:02]} 52. b5 {[%clk 0:00:09.2]} 52...
Bf2 {[%clk 0:00:02.5]} 53. c6 {[%clk 0:00:07.5]} 53... Rd4+ {[%clk 0:00:02.7]}
54. Ke6 {[%clk 0:00:07.9]} 54... Rxd3 {[%clk 0:00:02.5]} 55. c7 {[%clk
0:00:08.3]} 55... Rc3 {[%clk 0:00:03.2]} 56. Kd7 {[%clk 0:00:08.4]} 56... Bg3
{[%clk 0:00:02.3]} 57. c8=Q {[%clk 0:00:08.2]} 57... Rxc8 {[%clk 0:00:03.2]} 58.
Kxc8 {[%clk 0:00:08.6]} 58... f5 {[%clk 0:00:04.1]} 59. b6 {[%clk 0:00:08.5]}
59... f4 {[%clk 0:00:04.6]} 60. Rf7 {[%clk 0:00:08.8]} 60... Kg5 {[%clk
0:00:03]} 61. b7 {[%clk 0:00:07]} 61... f3 {[%clk 0:00:03.6]} 62. Rxf3 {[%clk
0:00:07.3]} 62... Bd6 {[%clk 0:00:03.6]} 63. Rd3 {[%clk 0:00:07.6]} 63... Bf4
{[%clk 0:00:03.4]} 64. Rd4 {[%clk 0:00:07.6]} 64... Bh2 {[%clk 0:00:03.3]} 65.
Rc4 {[%clk 0:00:07.4]} 65... h5 {[%clk 0:00:02.5]} 66. Rc7 {[%clk 0:00:07.7]}
1-0